Cogmind - Beta 16 @@@ ROGUE MODE // 2025.11.04 @ 10:01:52 Player: Naughtyusername Result: Destroyed by G-47 Trooper with Particle Gun Performance ------------- Evolutions (2) 1000 Regions Visited (5) 1000 Robots Destroyed (17) 85 Value Destroyed (109) 109 Prototype IDs (14) 280 Alien Tech Used (0) 0 Bonus (0) 0 TOTAL SCORE: 2474 Bonus ------- None Cogmind --------- Core Integrity 0/550 Matter 295/300 Energy 99/100 System Corruption 0% Temperature Cool (9) Movement Core (50) Location -8/Materials Parts ------- > --- POWER (1) -------- (None) > --- PROPULSION (4) --- (None) > --- UTILITY (4) ------ Advanced Terrain Scan Processor Transport Network Coupler > --- WEAPON (2) ------- (None) > --- INVENTORY (5) ---- Light Nuclear Core Large Storage Unit Improved Sensor Array Mini Grenade Launcher Datajack Peak State ------------ > --- POWER ------------ (None) > --- PROPULSION ------- (None) > --- UTILITY ---------- Improved Signal Interpreter Advanced Terrain Scan Processor Seismic Detector Transport Network Coupler > --- WEAPON ----------- Power Maul > --- INVENTORY -------- Light Nuclear Core Medium Storage Unit Improved Sensor Array Datajack Great Axe [Rating: 14] Favorites ----------- Power None Propulsion None Utility Seismic Detector Device Seismic Detector Processor Advanced Terrain Scan Processor Weapon Light Assault Rifle Energy Gun Small Laser Ballistic Gun Light Assault Rifle Impact Weapon Power Maul Special Melee Weapon Datajack Build | -11 -10 -10 -10 -9 -8 ------- Run | Yrd Mat Min Exi Min Mat Slots Evolved 4 | . . . . . 4 Power . | . . . . . . Propulsion 2 | . . . . . 2 Utility 2 | . . . . . 2 Weapon . | . . . . . . Parts Attached 11 | 3 . 1 1 3 3 Power . | . . . . . . Engine . | . . . . . . Core . | . . . . . . Reactor . | . . . . . . Propulsion . | . . . . . . Treads . | . . . . . . Leg . | . . . . . . Wheel . | . . . . . . Hover . | . . . . . . Flight . | . . . . . . Utility 6 | 1 . . . 2 3 Device 3 | 1 . . . 1 1 Storage . | . . . . . . Processor 3 | . . . . 1 2 Hackware . | . . . . . . Protection . | . . . . . . Artifact . | . . . . . . Weapon 5 | 2 . 1 1 1 . Energy Gun 1 | 1 . . . . . Energy Cannon . | . . . . . . Ballistic Gun 2 | 1 . 1 . . . Ballistic Cannon . | . . . . . . Launcher . | . . . . . . Special Weapon . | . . . . . . Impact Weapon 1 | . . . . 1 . Slashing Weapon . | . . . . . . Piercing Weapon . | . . . . . . Special Melee Weapon 1 | . . . 1 . . Unidentified Prototypes . | . . . . . . Parts Lost 6 | . . 1 . . 5 Power . | . . . . . . Propulsion . | . . . . . . Utility 4 | . . 1 . . 3 Weapon 2 | . . . . . 2 Highest Loss Streak 3 | . . 1 . . 3 To Critical Strikes . | . . . . . . Average Backups 3 | 2 3 3 4 4 4 Power 1 | 1 2 2 2 1 1 Propulsion . | . . . . . . Utility 1 | . 1 1 1 1 1 Weapon . | . . . . . 1 Tool/Special . | . . . . . . Unused Backups 8 | . . . 1 1 6 Power 3 | . . . . 1 2 Propulsion . | . . . . . . Utility 3 | . . . 1 . 2 Weapon 2 | . . . . . 2 Tool/Special . | . . . . . . Average Slot Usage (%) 40 | . 42 35 28 47 40 Device 9 | . 14 7 . 12 11 Processor 5 | . . . . 6 17 Energy Gun 3 | . 14 9 . . . Ballistic Gun 19 | . 14 18 15 27 8 Special Melee Weapon 1 | . . . 12 . . Peak Build Rating 14 | 3 3 3 2 9 14 Average Rating 4 | 2 3 2 2 5 10 On Entrance 3 | . 3 3 2 2 8 Avg Prop Armor Cover (%) . | . . . . . . Naked Turns . | . . . . . . Heaviest Build 4 | 3 3 3 2 4 4 Greatest Support 3 | 3 3 3 3 3 3 Greatest Overweight (x) 1 | . . . . 1 1 Average Overweight (x) . | . . . . . . Largest Inventory Capacity 5 | 5 5 5 5 5 5 Average Capacity 5 | 5 5 5 5 5 5 Most Carried 5 | 3 3 4 5 5 5 Average Carried 3 | 2 3 3 4 4 4 Final Capacity 5 | 5 5 5 5 5 5 Final Carried 5 | 3 3 4 4 5 5 Class Distribution -------------------- 100% | Mutant Dominant Class ---------------- Mutant | -10/Materials Mutant | -10/Mines Mutant | -10/Exiles Mutant | -9/Mines Mutant | -8/Materials Resources | -11 -10 -10 -10 -9 -8 ----------- Run | Yrd Mat Min Exi Min Mat Matter Collected 432 | 273 . 37 . 94 28 Remotely . | . . . . . . Salvage Created 478 | 350 . 52 . 29 47 Parts 44 | 33 . 3 . 5 3 Haulers Intercepted 1 | . . . . . 1 Recyclers Shooed 1 | . . . . . 1 Parts Field Recycled . | . . . . . . Retrieved Matter . | . . . . . . Parts Self-Destructed . | . . . . . . Prevented . | . . . . . . Parts Restored . | . . . . . . Kills | -11 -10 -10 -10 -9 -8 ------- Run | Yrd Mat Min Exi Min Mat Combat Hostiles Destroyed 2 | . . 2 . . . Guns 2 | . . 2 . . . Classes Destroyed 5 | 3 . 1 . . 1 Worker 4 | 4 . . . . . Tunneler 11 | 9 . 1 . 1 . Hauler 1 | . . . . . 1 Recycler 1 | 1 . . . . . Assembled 2 | . . 2 . . . Best Kill Streak 7 | 7 . 2 . 1 1 Combat Bots Only 2 | . . 2 . . . Max Kills in Single Turn 1 | 1 . 1 . 1 1 Gunslinging . | . . . . . . Exploded . | . . . . . . Melee . | . . . . . . Uniques/NPCs Destroyed . | . . . . . . Combat | -11 -10 -10 -10 -9 -8 -------- Run | Yrd Mat Min Exi Min Mat Hostile Shots Fired 90 | . . 16 . . 74 Missed 25 | . . 2 . . 23 Hits 65 | . . 14 . . 51 Projectile 65 | . . 14 . . 51 Critical Strikes 3 | . . . . . 3 Damage Taken 1043 | . . 206 . . 837 Core 636 | . . 76 . . 560 Absorbed by Shields . | . . . . . . Core Remaining (%) 84 | 100 . . . 69 . Volleys Fired 79 | 43 . 18 . 7 11 Largest 2 | 2 . 2 . 2 2 Hottest 60 | 60 . 60 . 40 40 Shots Fired 148 | 86 . 36 . 14 12 Gun 148 | 86 . 36 . 14 12 Cannon . | . . . . . . Launcher . | . . . . . . Special . | . . . . . . Kinetic 88 | 43 . 19 . 14 12 Thermal 60 | 43 . 17 . . . Explosive . | . . . . . . Electromagnetic . | . . . . . . Robot Hit Streak 8 | 8 . 4 . 6 4 Robot Miss Streak 5 | 5 . 5 . 2 2 Penetration Max . | . . . . . . Secondary Targets . | . . . . . . Shots Hit Robots 93 | 51 . 20 4 11 7 Core Hits 34 | 21 . 8 . 3 2 Critical Kills 1 | . . . . . 1 Critical Parts Destroyed . | . . . . . . Critical Strikes 1 | . . . . . 1 Destroy 1 | . . . . . 1 Melee Attacks 9 | . . . 4 . 5 Impact 5 | . . . . . 5 Slashing . | . . . . . . Piercing . | . . . . . . Sneak Attacks 4 | . . . 4 . . Combat Hostiles . | . . . . . . Follow-up Attacks . | . . . . . . Damage Inflicted 838 | 511 . 188 . 80 59 Guns 838 | 511 . 188 . 80 59 Cannons . | . . . . . . Explosions . | . . . . . . Melee . | . . . . . . Ramming . | . . . . . . Kinetic 468 | 256 . 73 . 80 59 Thermal 370 | 255 . 115 . . . Explosive . | . . . . . . Electromagnetic . | . . . . . . Impact . | . . . . . . Slashing . | . . . . . . Piercing . | . . . . . . Highest Corruption . | . . . . . . Average Corruption . | . . . . . . Corruption Purged . | . . . . . . Corruption Blocked . | . . . . . . Overload Shots . | . . . . . . Overflow Damage . | . . . . . . Projectiles . | . . . . . . Explosions . | . . . . . . Melee . | . . . . . . Knockbacks . | . . . . . . Impact . | . . . . . . Kinetic . | . . . . . . Secondary . | . . . . . . Self-Inflicted Damage . | . . . . . . Shots . | . . . . . . Rammed . | . . . . . . Targets Rammed . | . . . . . . Kicked . | . . . . . . Crushed . | . . . . . . Highest Temperature 20 | 20 . 20 . . . Average Temperature 9 | 9 . 9 . . . Received Heat Transfer 315 | . . . . . 315 Siege Activations . | . . . . . . Martial Activations . | . . . . . . Shielding Activations . | . . . . . . Robots Disrupted . | . . . . . . Combat Hostiles . | . . . . . . Robots Corrupted . | . . . . . . Combat Hostiles . | . . . . . . Parts Fried . | . . . . . . Impact Corruptions . | . . . . . . Robots Melted . | . . . . . . Combat Hostiles . | . . . . . . Parts Melted . | . . . . . . Heat Transferred 850 | 575 . 275 . . . Parts Sabotaged . | . . . . . . Parts Stolen . | . . . . . . Parts Stripped . | . . . . . . Power Chain Reactions . | . . . . . . Alert | -11 -10 -10 -10 -9 -8 ------- Run | Yrd Mat Min Exi Min Mat Maximum Alert Level 1 | . . . . . 1 Low Security (%) 97 | 100 100 100 . 100 86 Level 1 2 | . . . . . 13 Level 2 . | . . . . . . Level 3 . | . . . . . . Level 4 . | . . . . . . Level 5 . | . . . . . . High Security . | . . . . . . Max Security . | . . . . . . Peak Influence 227 | 15 . 5 . 5 227 Initial . | . . . . . . Average 15 | 2 . . . . 85 Influence Increases 424 | 70 . 5 . 5 344 Destroy 0b10 Robot/NC 85 | 70 . 5 . 5 5 Destroy Leader 2 | . . . . . 2 Successful Hack 5 | . . . . . 5 Disable Machine 30 | . . . . . 30 Destroy Structure 2 | . . . . . 2 Lose Combat Pursuer 300 | . . . . . 300 Influence Decreases 227 | 70 . 5 . 5 147 Time Decay 177 | 70 . 5 . 5 97 Lost Part 50 | . . . . . 50 Squads Dispatched 5 | . 1 . . . 4 Investigation 1 | . . . . . 1 Extermination . | . . . . . . Reinforcement 4 | . 1 . . . 3 Assault . | . . . . . . Garrison . | . . . . . . Intercept . | . . . . . . Searches Triggered . | . . . . . . Construction Impeded . | . . . . . . Haulers Reinforced . | . . . . . . Active Scanning Responses . | . . . . . . Cargo Convoy Interrupts . | . . . . . . Stealth | -11 -10 -10 -10 -9 -8 --------- Run | Yrd Mat Min Exi Min Mat Distress Signals 4 | . . . . . 4 Communications Jammed . | . . . . . . Distress Signals . | . . . . . . Times Spotted 39 | . 1 5 . . 33 Peak Tracking Total 10 | . 1 2 . . 10 Tactical Retreats 6 | . . . . . 6 Traps | -11 -10 -10 -10 -9 -8 ------- Run | Yrd Mat Min Exi Min Mat Traps Triggered . | . . . . . . Indirectly . | . . . . . . Trap Hack Attempts . | . . . . . . Triggered . | . . . . . . Disarmed . | . . . . . . Reprogrammed . | . . . . . . Reused . | . . . . . . Traps Extracted . | . . . . . . Installed . | . . . . . . Triggered . | . . . . . . Machines | -11 -10 -10 -10 -9 -8 ---------- Run | Yrd Mat Min Exi Min Mat Machines Disabled 2 | . . . . . 2 Max in Single Turn 1 | . . . . . 1 Garrison Access 1 | . . . . . 1 Machines Repaired . | . . . . . . Machines Dismantled . | . . . . . . Machines Sabotaged . | . . . . . . Overloaded Fab Kills . | . . . . . . Hacking | -11 -10 -10 -10 -9 -8 --------- Run | Yrd Mat Min Exi Min Mat Machines Accessed 10 | . 1 . 1 1 7 Terminals 6 | . 1 . . . 5 Fabricators . | . . . . . . Repair Stations . | . . . . . . Recycling Units . | . . . . . . Scanalyzers 1 | . . . . . 1 Garrison Access 1 | . . . . . 1 Total Hacks 22 | . 1 . 1 1 19 Successful 9 | . . . 1 1 7 Failed 13 | . 1 . . . 12 Catastrophic 5 | . 1 . . . 4 Database Lockouts . | . . . . . . Manual 17 | . 1 . 1 . 15 Terminals 16 | . 1 . . . 15 Fabricators . | . . . . . . Repair Stations . | . . . . . . Recycling Units . | . . . . . . Scanalyzers 2 | . . . . . 2 Garrison Access 2 | . . . . . 2 Terminal Hacks 4 | . . . 1 1 2 Record 1 | . . . 1 . . Open Door 1 | . . . . 1 . Terminal Index 1 | . . . . . 1 Alert Level 1 | . . . . . 1 Fabricator Hacks . | . . . . . . Repair Station Hacks . | . . . . . . Recycling Unit Hacks . | . . . . . . Scanalyzer 2 | . . . . . 2 Retrieve Study 2 | . . . . . 2 Garrison Access Hacks 1 | . . . . . 1 Seal Access 1 | . . . . . 1 Unauthorized Hacks 2 | . . . . . 2 Terminals 2 | . . . . . 2 Track 1 | . . . . . 1 Skim 1 | . . . . . 1 Fabricators . | . . . . . . Repair Stations . | . . . . . . Recycling Units . | . . . . . . Scanalyzers . | . . . . . . Garrison Access . | . . . . . . Data Cores Recovered . | . . . . . . Used . | . . . . . . Hacking Detections 7 | . 1 . . . 6 Full Trace Events 1 | . . . . . 1 Feedback Events . | . . . . . . Feedback Blocked . | . . . . . . Robot Schematics Acquired . | . . . . . . Robots Built . | . . . . . . Authchips . | . . . . . . Time . | . . . . . . Total Robot Build Rating . | . . . . . . Part Schematics Acquired . | . . . . . . Parts Built . | . . . . . . Authchips . | . . . . . . Time . | . . . . . . Total Part Build Rating . | . . . . . . Part Studies Acquired 2 | . . . . . 2 Parts Repaired . | . . . . . . Time . | . . . . . . Parts Recycled . | . . . . . . Recycled Matter . | . . . . . . Retrieved Matter . | . . . . . . Retrieved Components . | . . . . . . Parts Scanalyzed . | . . . . . . Part Schematics Acquired . | . . . . . . Parts Damaged . | . . . . . . Bothacking | -11 -10 -10 -10 -9 -8 ------------ Run | Yrd Mat Min Exi Min Mat Used RIF Installer . | . . . . . . Robots Hacked 4 | . . . 4 . . Non-combat 3 | . . . 3 . . Combat 1 | . . . 1 . . Robot Hacks Applied 4 | . . . 4 . . parse_system 4 | . . . 4 . . Relay Couplers Released . | . . . . . . Fabnet Peak Effective % . | . . . . . . Robots Rewired . | . . . . . . Allies Hacked . | . . . . . . Hacks Repelled . | . . . . . . Allies | -11 -10 -10 -10 -9 -8 -------- Run | Yrd Mat Min Exi Min Mat Total Allies 1 | . . 1 . . . Largest Group 1 | . . 1 . . . Highest-Rated Group 31 | . . 31 . . . Highest-Rated Ally 31 | . . 31 . . . Total Orders . | . . . . . . Ally Attacks 6 | . . 6 . . . Total Damage 61 | . . 61 . . . Kills 3 | . . 3 . . . Allies Corrupted . | . . . . . . Allies Melted . | . . . . . . Intel | -11 -10 -10 -10 -9 -8 ------- Run | Yrd Mat Min Exi Min Mat Active Infowar (turns) 1395 | 285 29 279 . 506 296 Sensors 164 | . . . . . 164 Seismic 1334 | 285 29 279 . 506 235 T.N.C. 226 | . . . . . 226 Robot Analysis Total . | . . . . . . Derelict Logs Recovered 2 | . . 1 . 1 . Drone Launches . | . . . . . . Drone Recoveries . | . . . . . . Exploration | -11 -10 -10 -10 -9 -8 ------------- Run | Yrd Mat Min Exi Min Mat Turns Passed 1883 | 385 29 503 134 536 296 Spaces Moved 2128 | 159 58 610 249 570 482 Core 2128 | 159 58 610 249 570 482 Treads . | . . . . . . Legs . | . . . . . . Wheels . | . . . . . . Hover . | . . . . . . Flight . | . . . . . . Fastest Speed 50 | 50 50 50 50 50 50 Average Speed 50 | 50 50 50 50 50 51 Slowest Speed 100 | 50 50 50 50 100 100 Overloaded Moves . | . . . . . . Propulsion Burnouts . | . . . . . . Robots Hopped . | . . . . . . Potential Cave-ins . | . . . . . . Cave-ins Triggered . | . . . . . . Exploration Rate (%) 58 | 4 19 98 63 98 70 Regions Visited 5 Branch Regions 3 Pre-discovered Areas 2 | . . . 1 1 . Known Exits Taken . | . . . . . . Unknown Exits Taken 5 | 1 1 1 1 1 . Scrap Searched 2 | . . 1 . 1 . Spaces Dug 3 | . . . . . 3 Terrain Destroyed 3 | . . . . . 3 Melee 3 | . . . . . 3 Projectile . | . . . . . . AOE . | . . . . . . Terrain Rammed . | . . . . . . Walls Destroyed . | . . . . . . Machines Disabled . | . . . . . . Actions | -11 -10 -10 -10 -9 -8 --------- Run | Yrd Mat Min Exi Min Mat Total 2787 | 385 57 774 255 806 510 Wait 537 | 178 . 143 . 216 . Move 2123 | 158 57 609 248 569 482 Hop . | . . . . . . Pick Up 11 | 3 . 1 1 2 4 Fast Attach 11 | 3 . . . 5 3 Attach 2 | . . . . 1 1 Detach 1 | . . . . 1 . Swap 4 | . . 2 1 1 . Drop 10 | . . 1 1 4 4 Fire 79 | 43 . 18 . 7 11 Melee 9 | . . . 4 . 5 Ram . | . . . . . . Kick . | . . . . . . Crush . | . . . . . . Escape Stasis . | . . . . . . Rewire . | . . . . . . Trap . | . . . . . . Miscellaneous . | . . . . . . Route ------- -11/Scrapyard -10/Materials -10/Mines (discovered 3 exits: [*Mat x2] / *Exi) -10/Exiles -9/Mines (discovered 2 exits: *Mat x2) -8/Materials (discovered 1 exit: [*Fac]) History --------- Turn | Location | Event 16 | -11/Scrapyard | Discovered new exit (range 15) 386 | -11/Scrapyard | Entered Materials 387 | -10/Materials | Build established: Mutant 411 | -10/Materials | Discovered new exit (range 6) 415 | -10/Materials | Entered Mines 418 | -10/Mines | Received a Mining Laser from a helpful Derelict 457 | -10/Mines | Assembled infested the area 462 | -10/Mines | Assisted by a Guerilla fighting off Assembled 712 | -10/Mines | Discovered new exit (range 8) 713 | -10/Mines | Joined a pair of Derelicts in attacking an 0b10 outpost 807 | -10/Mines | Deemed a non-threat by the Exiles lab entrance 808 | -10/Mines | Discovered new exit (range 5) 823 | -10/Mines | Discovered new exit (range 7) 825 | -10/Mines | Learned Materials emergency access door positions 918 | -10/Mines | Entered Exiles 934 | -10/Exiles | Met 8R-AWN 941 | -10/Exiles | Met EX-HEX 962 | -10/Exiles | Met EX-BIN 1006 | -10/Exiles | Met EX-DEC 1008 | -10/Exiles | Learned location of Zion (-7) 1048 | -10/Exiles | Discovered new exit (range 10) 1052 | -10/Exiles | Entered Mines 1113 | -9/Mines | Met a Derelict who couldn't figure out how to use a Trap Extractor 1384 | -9/Mines | Found a Scrap Suit stashed away for nefarious purposes 1437 | -9/Mines | Discovered new exit (range 15) 1480 | -9/Mines | Found a hidden stash of uninstalled traps 1508 | -9/Mines | Discovered new exit (range 4) 1588 | -9/Mines | Entered Materials 1588 | -8/Materials | Evolved 4 slots: Propulsion x2, Utility x2 1778 | -8/Materials | Discovered new exit (range 6) 1823 | -8/Materials | Core integrity fell below 50% 1854 | -8/Materials | Lost 3 parts (2u1w) 1881 | -8/Materials | Core integrity fell below 20% 1884 | -8/Materials | Destroyed by G-47 Trooper with Particle Gun Last Messages --------------- 01833_ Connecting with Terminal... 01833_ Terminal disabled. 01838_ Dropped Great Axe. 01839_ Acquired Mni. Grenade Launcher. 01845_ Connecting with Terminal... 01845_ ALERT: Suspicious activity at Terminal M010. Dispatching Investigation squad. 01861_ Connecting with Garrison Access... >>Seal Access door sealed. 01863_ K-01 Serf collects debris. 01874_ Dropped Med. Storage Unit. 01874_ Acquired Lrg. Storage Unit. 01879_ Critical hit (Burn: +37). 01880_ Power Maul destroyed. 01880_ Critical hit (Blast). 01880_ Knocked back. 01881_ W-25 Informer sends out distress signal. 01882_ Imp. Signal Interpreter destroyed. 01882_ Critical hit (Blast). Map ----- +----------------------------------------------------+ | ]#??????????????????????????????????? | | #??????????????????????????????????? | | #########???????????????????????????? | | # #?????###+###???????????????? | | ####### #???????????????? | | " #???????????????? | | " ??????????????? | | #???????????????? | | ####### #???????????????? | | # / #???????# ####??????????????? | | ####+############ !##?????????????? | | # ! + !#?????????????? | | # # ! #?????????????? | | """ # " " *# !#?????????????? | | """ = //# "G" # !#?????????????? | | """ /!# " # !##?????????????? | | """ # # ####??????????????? | | ####+### #?????????????????? | | / ! ##?# #?# #?????????????????? | | ####T####"### #?# #?????????????????? | | ???###??## ## #?# #?????????????????? | | ?????######"#+#?# #?????????????????? | | ?????# #?# #????????????#????? | | ?????# ### ###???????? ##???? | | ?????+ # Y ####### #???? | | ?????# # % @ #???? | | ?????# g H #???? | | ?????# # #???? | | ?????# # ####### #???? | | ?????# #######??????######???? | | ?????# #?????????????????????? | | ?????##########?????????????????????? | | ????????????????????????????????????? | | ????????????????????????????????????? | | ????????????????????????????????????? | | ????????????????????????????????????? | | ????????????????????????????????????? | | ????????????????????????????????????? | | ????????????????????????????????????? | | ????????????????????????????????????? | | ????????????????????????????????????? | | ????????????????????????????????????? | | ????????????????????????????????????? | | ????????????????????????????????????? | | ????????????????????????????????????? | | ????????????????????????????????????? | | ????????????????????????????????????? | | ????????????????????????????????????? | | ????????????????????????????????????? | | ????????????????????????????????????? | +----------------------------------------------------+ Best States ------------- Heat Dissipation 31 Energy Generation 5 Energy Capacity 100 Matter Stores 300 Matter Capacity 300 Sight Range 16 Robot Scan Range 15 Terrain Scan Density 210 Evasion (%) 50 Item Schematics ----------------- None Robot Schematics ------------------ None Fabricated ------------ Nothing Repaired ---------- Nothing Studied --------- Lgt. Assault Rifle | -8/Materials | Hacked Datajack | -8/Materials | Hacked Alien Tech Used ----------------- None Achievements -------------- None Challenges ------------ None Game ------ Seed OvertunedMediumMonowheel Manual? 0 Play Time 00:14:13 Cumulative 504.8 hours Start 2025.11.04 @ 09:31:08 End 2025.11.04 @ 10:01:52 Sessions 2 Manual Loads 0 Difficulty Rogue Special Mode None Game No. 268 Rogue 268 Adventurer 0 Explorer 0 Win Type - Total 22 Types 13/1/5/1/0/0/0/1/1/0 Lore% 94 Gallery% 87 Achievement% 79 Wizard Run 0 Options --------- Layout 2 ASCII 0 Keyboard 1 Movement Vi Keybinds 0 Fullscreen 1 Font 28/Cog Map View 50x52 Zoom Use 0% Tactical HUD 1 Map Filters NONE Filters NONE Steam 1 RUN: 9f85d061-fb11-4bcd-a96a-81f5f9abdfc8